Cogmind - Beta 13 @@@ ROGUE MODE // 2024.04.04 @ 08:05:05 Player: CatPlusPlus Result: Destroyed by S-43 Plague with Heavy Machine Gun Performance ------------- Evolutions (7) 3500 Regions Visited (25) 5000 Robots Destroyed (240) 1200 Value Destroyed (9363) 9363 Prototype IDs (70) 1400 Alien Tech Used (0) 0 Bonus (4562) 4562 TOTAL SCORE: 25025 Bonus ------- High Alert Combat Kills 1420 Follower Combat Kills 1145 Met Data Miner 300 Met Warlord at Base 500 MAIN.C Attacked Warlord 500 Warlord Defense Kills 1482 Friendly Fire -785 Cogmind --------- Core Integrity 0/1300 Matter 282/300 Energy 566/700 System Corruption 22% Temperature Cool (0) Movement Core (50) Location -3/Research Parts ------- > --- POWER (2) -------- (None) > --- PROPULSION (6) --- (None) > --- UTILITY (11) ----- Experimental Energy Well Experimental Optical Array > --- WEAPON (2) ------- (None) > --- INVENTORY (5) ---- Improved Component Analysis Suite Vortex Shotgun (46) Vortex Shotgun (42) Mini Smartbomb Launcher Advanced Datajack Peak State ------------ > --- POWER ------------ Vortex Chain Reactor > --- PROPULSION ------- Armored Medium Treads Myomer Leg Myomer Leg Enhanced Biometal Leg Enhanced Biometal Leg > --- UTILITY ---------- Advanced Heat Sink Advanced Heat Sink High-capacity Storage Unit Experimental Optical Array Experimental Signal Interpreter Advanced Targeting Computer Experimental Armor Integrity Analyzer Improved Transmission Jammer Centrium Light Armor Plating Hacking Drone Bay > --- WEAPON ----------- Dispersion Rifle Heavy Neutron Cannon > --- INVENTORY -------- Reinforced Fission Core Armored Medium Treads Carbon-fiber Leg Field Propulsion Drive Advanced Heat Sink Experimental Energy Well Improved Medium Armor Plating Advanced Focal Shield Improved Component Analysis Suite Wave Gun Phase Gun Vortex Shotgun Vortex Shotgun Vortex Driver Coil Gun KE Penetrator Heavy Rocket Launcher Smartbomb Launcher Heavy Hammer [Rating: 149] Favorites ----------- Power Fission Core Engine Improved Ion Engine Power Core Fission Core Reactor Particle Reactor Propulsion Potential Leg Treads Light Treads Leg Potential Leg Wheel Armored Huge Wheel Hover Unit Gravmag System Flight Unit Q-thruster Utility High-capacity Storage Unit Device Structural Scanner Storage High-capacity Storage Unit Processor Experimental Optical Array Hackware Hacking Suite Protection Makeshift Light Armor Plating Weapon Gatling Laser Energy Gun Gatling Laser Energy Cannon Heavy Phase Cannon Ballistic Gun Assault Rifle Ballistic Cannon Light Cannon Launcher Heavy Missile Launcher Special Weapon RU-N14's Throwing Claymores Impact Weapon Heavy Hammer Slashing Weapon Chainsword Piercing Weapon Force Lance Special Melee Weapon Advanced Datajack Build | -11 -10 -10 -10 -9 -8 -7 -7 -7 -7 -6 -6 -6 -6 -6 -5 -5 -5 -5 -5 -4 -4 -4 -4 -4 -3 ------- Run | Yrd Mat Min Exi Min Mat Fac Low Low Dat Pro Fac Low Low Zio Pro Fac Upp Upp War Pro Fac Ext Cet Arc Res Slots Evolved 14 | . . . . . 4 2 . . . . 2 . . . . 2 . . . . 2 . . . 2 Power 1 | . . . . . . . . . . . 1 . . . . . . . . . . . . . . Propulsion 4 | . . . . . 2 . . . . . . . . . . . . . . . 1 . . . 1 Utility 9 | . . . . . 2 2 . . . . 1 . . . . 2 . . . . 1 . . . 1 Weapon . | . . . . . . . . . . . . . . . . . . . . . . . . . . Parts Attached 478 | 7 14 9 4 . 53 22 4 6 1 8 33 10 8 20 10 47 8 4 37 14 26 71 17 31 14 Power 39 | 1 1 2 . . 5 1 . . . . 3 . 2 1 1 4 . . 1 . 1 10 1 4 1 Engine 9 | 1 1 1 . . 4 . . . . . . . . . . . . . . . . . . 2 . Core 23 | . . 1 . . 1 1 . . . . 3 . 2 1 . 3 . . . . 1 9 . 1 . Reactor 7 | . . . . . . . . . . . . . . . 1 1 . . 1 . . 1 1 1 1 Propulsion 71 | 2 2 2 2 . 6 3 . . . . 2 . . 1 . 4 2 . 4 3 3 17 6 9 3 Treads 17 | 2 2 2 . . . . . . . . . . . . . 1 1 . . . 2 1 3 3 . Leg 41 | . . . 2 . 6 3 . . . . 2 . . 1 . 2 1 . 3 3 1 16 1 . . Wheel 5 | . . . . . . . . . . . . . . . . 1 . . 1 . . . 2 1 . Hover 7 | . . . . . . . . . . . . . . . . . . . . . . . . 5 2 Flight 1 | . . . . . . . . . . . . . . . . . . . . . . . . . 1 Utility 195 | 2 3 1 2 . 17 9 2 1 1 3 16 5 3 11 5 28 3 1 15 5 12 29 4 12 5 Device 123 | 1 . . 1 . 11 4 1 1 . 2 7 3 1 6 5 21 3 1 10 3 9 18 2 8 5 Storage 8 | 1 2 . . . 1 . . . . . . . . . . . . . 2 . . 1 . 1 . Processor 8 | . . . . . . 1 . . . . . . 1 2 . 1 . . . . 2 . 1 . . Hackware 6 | . . . . . . 1 . . . . 1 . 1 1 . . . . . . . . . 2 . Protection 50 | . 1 1 1 . 5 3 1 . 1 1 8 2 . 2 . 6 . . 3 2 1 10 1 1 . Artifact . | . . . . . . . . . . . . . . . . . . . . . . . . . . Weapon 173 | 2 8 4 . . 25 9 2 5 . 5 12 5 3 7 4 11 3 3 17 6 10 15 6 6 5 Energy Gun 48 | . 2 . . . 12 3 . . . 2 7 2 . 3 2 1 . . 5 1 2 4 . 2 . Energy Cannon 14 | . . . . . . . . . . . . . . . . 2 . . 3 . 2 1 2 . 4 Ballistic Gun 37 | 2 4 3 . . 6 . . . . . . . . . . 3 1 1 6 3 1 4 1 2 . Ballistic Cannon 1 | . 1 . . . . . . . . . . . . . . . . . . . . . . . . Launcher 28 | . 1 1 . . 3 1 1 2 . 1 1 1 1 1 1 . 1 . 2 . 2 5 3 . . Special Weapon 1 | . . . . . . . . . . . . . . 1 . . . . . . . . . . . Impact Weapon 12 | . . . . . 4 1 . . . . . . . . . . . 2 1 2 2 . . . . Slashing Weapon 27 | . . . . . . 3 1 3 . 2 4 2 2 2 1 5 1 . . . . 1 . . . Piercing Weapon 2 | . . . . . . . . . . . . . . . . . . . . . 1 . . 1 . Special Melee Weapon 3 | . . . . . . 1 . . . . . . . . . . . . . . . . . 1 1 Unidentified Prototypes 20 | . . . . . 7 . . . . . 1 . . 2 . . . . 8 1 . . 1 . . Corrupted Parts 1 | . . . . . . . . . . . . . . . . . . . . . . . 1 . . System Corruption 2 | . . . . . . . . . . . . . . . . . . . . . . . 2 . . Parts Lost 68 | . . . . . 3 . . . . . . 1 . . . 1 . . 4 5 2 19 9 3 21 Power 8 | . . . . . . . . . . . . . . . . . . . . . 1 3 1 1 2 Propulsion 18 | . . . . . . . . . . . . . . . . . . . . 1 1 6 3 1 6 Utility 33 | . . . . . 3 . . . . . . 1 . . . 1 . . 3 3 . 9 3 1 9 Weapon 9 | . . . . . . . . . . . . . . . . . . . 1 1 . 1 2 . 4 Highest Loss Streak 21 | . . . . . 1 . . . . . . 1 . . . 1 . . 2 4 1 7 8 3 21 To Critical Strikes 3 | . . . . . . . . . . . . . . . . . . . . . . 3 . . . Average Slot Usage (%) 96 | . 100 100 100 100 99 98 100 100 100 100 100 100 100 99 100 96 94 94 89 86 92 96 87 93 80 Engine 3 | . 14 8 14 14 6 . . . . . . . . . . . . . . . . . . 3 3 Core 5 | . . 5 . . 2 7 7 7 7 7 13 13 13 13 12 5 5 5 2 . . 9 . . 1 Reactor 1 | . . . . . . . . . . . . . . . . 5 5 5 4 5 4 . 7 5 1 Treads 5 | . 28 28 12 . . . . . . . . . . . . . 5 5 2 . 2 . 10 16 . Leg 17 | . . . 15 28 35 29 30 30 30 30 26 26 26 26 26 15 5 5 8 22 23 24 6 . . Wheel 1 | . . . . . . . . . . . . . . . . 2 5 5 4 . . . 3 2 . Device 16 | . 14 . . . 17 19 23 23 23 22 18 18 13 15 20 21 23 23 20 17 17 17 19 20 17 Storage 7 | . 14 14 14 14 9 7 7 7 7 7 6 6 6 6 6 5 5 5 6 5 5 5 5 4 4 Processor 10 | . . . . . . 7 7 7 7 7 6 6 11 13 13 17 17 17 17 15 20 19 18 20 8 Hackware 2 | . . . . . . 5 7 7 7 7 13 13 13 9 . . . . . . . . . . 8 Protection 5 | . . 14 14 14 8 4 . . . . 1 1 . . 6 5 5 5 4 5 7 8 3 5 3 Energy Gun 4 | . 8 . . . 11 6 7 7 7 6 7 4 6 10 8 2 . . 1 5 3 4 1 5 . Energy Cannon 1 | . . . . . . . . . . . . . . . . 2 5 5 4 . 3 2 4 . . Ballistic Gun 5 | . 19 27 28 28 4 . . . . . . . . . . 1 3 . 1 1 . 2 3 3 . Slashing Weapon 1 | . . . . . . 3 7 6 . 6 4 3 5 2 3 2 1 . . . . . . . . Naked Turns . | . . . . . . . . . . . . . . . . . . . . . . . . . . Heaviest Build 153 | 14 51 55 55 55 62 63 67 61 67 64 79 75 75 83 86 98 100 95 119 110 107 153 143 143 50 Greatest Support 152 | 40 40 40 60 60 90 88 88 88 88 88 95 93 93 96 96 96 28 28 76 110 125 115 124 152 56 Greatest Overweight (x) 17 | 1 1 1 1 . 1 . . . . . . . . . . 3 3 3 4 1 . 1 8 17 1 Average Overweight (x) . | . . 1 . . . . . . . . . . . . . 1 3 3 3 . . . 2 . . Largest Inventory Capacity 25 | 8 20 20 20 20 20 20 20 20 20 20 20 20 20 20 20 20 20 20 20 20 20 25 25 25 5 Average Capacity 19 | 7 18 20 20 20 20 20 20 20 20 20 20 20 20 20 20 20 20 20 20 20 20 21 25 22 5 Most Carried 25 | 2 20 20 20 20 20 20 20 20 20 20 20 20 20 20 20 20 20 20 20 20 20 25 25 25 5 Average Carried 19 | 1 16 19 19 19 19 19 20 19 20 20 19 19 19 19 20 19 19 20 19 18 19 21 21 20 5 Final Capacity 25 | 8 20 20 20 20 20 20 20 20 20 20 20 20 20 20 20 20 20 20 20 20 20 25 25 5 5 Final Carried 25 | 2 20 20 20 20 20 20 20 20 20 20 20 20 20 20 20 20 20 20 20 18 20 25 20 5 5 Class Distribution -------------------- 21% | Mutant 15% | Scavenger-Mutant 11% | Scavenger-Skirmisher 11% | Scavenger-Assassin 9% | Assassin 7% | Derelict-Skirmisher 6% | Derelict-Assassin 5% | Hacker-Assassin 3% | Hacker-Mutant Dominant Class ---------------- Mutant | -10/Materials Mutant | -10/Mines Mutant | -10/Exiles Mutant | -9/Mines Scavenger-Mutant | -8/Materials Assassin | -7/Factory Assassin | -7/Lower Caves Assassin | -7/Lower Caves Skirmisher | -7/Data Miner Assassin | -6/Proximity Caves Hacker-Assassin | -6/Factory Hacker-Assassin | -6/Lower Caves Hacker-Mutant | -6/Lower Caves Hacker-Skirmisher | -6/Zion Derelict-Assassin | -5/Proximity Caves Scavenger-Assassin | -5/Factory Scavenger-Skirmisher | -5/Upper Caves Scavenger-Assassin | -5/Upper Caves Scavenger-Assassin | -5/Warlord Scavenger-Assassin | -4/Proximity Caves Scavenger-Mutant | -4/Factory Scavenger-Mutant | -4/Extension Scavenger-Skirmisher | -4/Cetus Scavenger-Skirmisher | -4/Archives Scavenger-Scout | -3/Research Resources | -11 -10 -10 -10 -9 -8 -7 -7 -7 -7 -6 -6 -6 -6 -6 -5 -5 -5 -5 -5 -4 -4 -4 -4 -4 -3 ----------- Run | Yrd Mat Min Exi Min Mat Fac Low Low Dat Pro Fac Low Low Zio Pro Fac Upp Upp War Pro Fac Ext Cet Arc Res Matter Collected 7451 | 310 504 317 59 59 741 160 44 171 . 103 306 123 122 106 246 568 96 68 433 308 331 1393 304 536 43 Remotely 1136 | . . . . . . . . . . . . . . . . . . . . . . 907 229 . . Salvage Created 10197 | 161 504 164 59 67 1730 412 . 87 . 86 390 111 78 . 124 980 86 23 494 102 680 2579 415 601 264 Parts 438 | 10 33 11 3 2 80 9 . 3 . 1 19 2 6 . 7 46 2 2 30 . 24 93 10 23 22 Haulers Intercepted 12 | . 2 . . . 5 1 . . . . 1 . . . . 1 . . . . . 2 . . . Recyclers Shooed 13 | . . . . . 3 1 . . . . . . . . . 4 . . . . 4 1 . . . Parts Field Recycled . | . . . . . . . . . . . . . . . . . . . . . . . . . . Retrieved Matter . | . . . . . . . . . . . . . . . . . . . . . . . . . . Parts Self-Destructed 40 | . . . . . . . 3 15 . 1 . 2 9 . 6 . 1 2 . 1 . . . . . Prevented . | . . . . . . . . . . . . . . . . . . . . . . . . . . Kills | -11 -10 -10 -10 -9 -8 -7 -7 -7 -7 -6 -6 -6 -6 -6 -5 -5 -5 -5 -5 -4 -4 -4 -4 -4 -3 ------- Run | Yrd Mat Min Exi Min Mat Fac Low Low Dat Pro Fac Low Low Zio Pro Fac Upp Upp War Pro Fac Ext Cet Arc Res Combat Hostiles Destroyed 164 | . 12 5 . . 28 4 . 4 . 2 5 4 6 . 7 11 1 1 13 2 7 33 11 4 4 Melee 2 | . . . . . . . . . . . . . . . . . . . . . . . . . 2 Guns 81 | . 11 2 . . 21 4 . 1 . 1 4 4 2 . 1 4 . . 5 2 4 11 2 2 . Cannons 30 | . 1 . . . . . . . . . . . . . . 6 1 1 6 . 2 8 2 1 2 AOE 44 | . . 3 . . 6 . . 3 . . . . 4 . 5 1 . . 2 . 1 13 6 . . Classes Destroyed 21 | 3 6 . . . 4 1 . 1 . . . . . . 1 1 . . 4 . . . . . . Worker 5 | 1 . . . . . . . . . . . . . . . 1 . . . . 1 2 . . . Builder 15 | . 2 . . . 3 1 . . . . 2 . . . . 1 . . . . 1 3 . . 2 Tunneler 6 | 3 . . . . 1 . . . . . . . . . . . . . . . 1 1 . . . Hauler 12 | . 2 . . . 5 1 . . . . 1 . . . . 1 . . . . . 2 . . . Recycler 13 | 1 . 1 . 1 2 2 . . . . . . . . . 2 . . . . 2 2 . . . Mechanic 1 | . . . . . . . . . . . . . . . . 1 . . . . . . . . . Operator 13 | . 1 . . . 1 . . . . . . . . . . . . . . . 1 . . 9 1 Drone 2 | . . . . . . . . . . . . . . . 2 . . . . . . . . . . Watcher 10 | . 3 . . . 5 . . . . . . . . . . 1 . . . . . 1 . . . Swarmer 42 | . 6 3 . . 8 . . . . . . 3 6 . 4 4 . 1 1 . . . 4 . 2 Saboteur 2 | . . . . . . . . . . . . . . . . . . . 1 . . 1 . . . Grunt 48 | . 6 2 . . 10 . . 2 . . . . . . . 2 . . 3 . . 20 3 . . Brawler 6 | . . . . . 1 . . . . . . . . . . . . . 1 . . 4 . . . Duelist 3 | . . . . . 1 . . 1 . . . . . . . . . . . . . 1 . . . Protector 1 | . . . . . . . . . . . . . . . . . . . 1 . . . . . . Sentry 28 | . . . . . 7 2 . . . . 3 1 . . 1 1 1 . . . 4 4 . 4 . Demolisher 1 | . . . . . . . . . . . . . . . . . . . 1 . . . . . . Specialist 1 | . . . . . . . . . . . . . . . . . . . 1 . . . . . . Hunter 11 | . . . . . 1 1 . . . 2 . . . . . . . . 2 2 2 1 . . . Programmer 14 | . . . . . . 1 . . . . 2 . . . . 4 . . 2 . 1 2 . . 2 Cetus Guard 4 | . . . . . . . . . . . . . . . . . . . . . . . 4 . . Thief 1 | . . . . . . . . 1 . . . . . . . . . . . . . . . . . Guerrilla 1 | . . . . . . . . . . . . . . . . . . . . . . 1 . . . Best Kill Streak 7 | 3 3 3 . 1 7 4 . 3 . 2 2 3 3 . 4 5 1 1 3 2 3 7 7 3 2 Combat Bots Only 7 | . 3 3 . . 4 3 . 3 . 2 1 3 3 . 4 5 1 1 3 2 2 7 7 1 2 Max Kills in Single Turn 5 | 1 1 2 . 1 2 1 . 1 . 1 1 1 2 . 2 1 1 1 1 1 1 3 5 1 1 Gunslinging . | . . . . . . . . . . . . . . . . . . . . . . . . . . Exploded 5 | . . 2 . . 2 . . 1 . . . . 2 . 2 1 . . 1 . 1 3 5 . . Melee 1 | . . . . . . . . . . . . . . . . . . . . . . . . . 1 Uniques/NPCs Destroyed . | . . . . . . . . . . . . . . . . . . . . . . . . . . Combat | -11 -10 -10 -10 -9 -8 -7 -7 -7 -7 -6 -6 -6 -6 -6 -5 -5 -5 -5 -5 -4 -4 -4 -4 -4 -3 -------- Run | Yrd Mat Min Exi Min Mat Fac Low Low Dat Pro Fac Low Low Zio Pro Fac Upp Upp War Pro Fac Ext Cet Arc Res Hostile Shots Fired 1297 | . 49 21 . 2 87 93 . . . 30 91 49 10 . 16 59 6 2 103 86 70 216 75 49 183 Missed 398 | . 9 4 . . 30 33 . . . 9 44 21 6 . 3 17 1 . 24 20 24 51 34 11 57 Damage Taken 16900 | . 435 243 . 26 840 495 . . . 159 436 311 78 . 275 632 83 31 2041 813 1187 3591 978 1103 3143 Core 2714 | . 46 16 . . 143 71 . . . . 46 21 . . . 29 17 . 297 63 188 228 117 114 1318 Absorbed by Shields 686 | . . . . . . . . . . . . . . . . 166 32 . 410 . . 78 . . . Redirected to Shielding 105 | . . . . . 105 . . . . . . . . . . . . . . . . . . . . Ignored by Resistances 373 | . . . . . . 18 . . . . . . . . . . . . . 259 58 38 . . . Regen/Repaired (Parts) 438 | . . . . . . 133 . . . . . . . . . 197 . . 108 . . . . . . Core Remaining (%) 76 | 100 . . . 75 74 . . . . 89 . . . . 92 . . . . 59 . . . 43 . Volleys Fired 709 | 19 58 20 7 6 105 15 . 5 . 7 15 10 6 . 13 51 5 10 62 27 48 118 24 67 11 Largest 2 | 2 2 2 2 2 2 2 . 1 . 2 2 2 1 . 2 2 2 2 2 2 2 2 2 2 1 Hottest 198 | 40 85 40 43 43 160 160 . 80 . 160 160 160 80 . 162 161 120 120 190 121 198 198 198 198 110 Shots Fired 1203 | 38 115 36 14 12 196 25 . 5 . 13 30 12 6 . 17 70 9 12 102 34 73 203 41 129 11 Gun 930 | 38 104 32 14 12 191 25 . 1 . 12 30 11 3 . 14 42 4 2 49 34 43 138 17 114 . Cannon 228 | . 11 . . . . . . . . . . . . . . 28 5 10 52 . 28 49 19 15 11 Launcher 45 | . . 4 . . 5 . . 4 . 1 . 1 3 . 3 . . . 1 . 2 16 5 . . Special . | . . . . . . . . . . . . . . . . . . . . . . . . . . Kinetic 433 | 38 78 32 14 12 57 . . . . . . . . . . 23 4 2 42 19 12 60 3 37 . Thermal 706 | . 37 . . . 134 25 . 1 . 12 30 11 3 . 14 47 5 10 48 7 59 127 33 92 11 Explosive 45 | . . 4 . . 5 . . 4 . 1 . 1 3 . 3 . . . 1 . 2 16 5 . . Electromagnetic . | . . . . . . . . . . . . . . . . . . . . . . . . . . Entropic 19 | . . . . . . . . . . . . . . . . . . . 11 8 . . . . . Robot Hit Streak 28 | 10 12 6 7 9 15 15 . 9 . 9 17 18 11 . 8 12 6 2 10 4 13 20 14 28 5 Robot Miss Streak 10 | 1 10 2 2 2 4 2 . 2 . 1 3 3 4 . 1 2 1 1 3 6 2 5 1 4 2 Penetration Max 2 | . . . . . . . . . . . . . . . . . . . 1 . 1 2 . 1 . Secondary Targets 3 | . . . . . . 1 . . . . . . . . . . . . . . . 2 . . . Max Gunslinging Chain 1 | . . . . . . 1 . . . . . . . . . . . . . . . 1 . . . Shots Hit Robots 861 | 27 63 23 10 7 136 33 . 3 . 11 26 11 3 . 8 47 6 2 63 22 60 147 29 96 28 Core Hits 527 | 8 27 12 2 3 71 19 . 6 . 9 21 10 9 . 9 41 2 1 31 7 25 138 30 37 9 Critical Kills 3 | 1 . . . . . . . . . . . . . . . . . . . . . 1 1 . . Critical Parts Destroyed 6 | . . . . . . . . . . . . . . . . 1 . . 2 1 2 . . . . Critical Strikes 33 | 1 3 . . . 9 . . . . . . . . . . 1 . . 4 1 3 4 1 4 2 Burn 20 | . 3 . . . 9 . . . . . . . . . . . . . . . 1 3 . 4 . Meltdown 2 | . . . . . . . . . . . . . . . . . . . . . . 1 1 . . Destroy 7 | 1 . . . . . . . . . . . . . . . 1 . . 2 1 2 . . . . Impale 2 | . . . . . . . . . . . . . . . . . . . . . . . . . 2 Sunder 2 | . . . . . . . . . . . . . . . . . . . 2 . . . . . . Melee Attacks 197 | . . . . . 12 36 3 2 . 4 20 1 3 9 2 19 2 8 11 13 10 2 . . 40 Thermal 2 | . . . . . . . . . . . . . . . . . . . . . . 2 . . . Impact 58 | . . . . . 12 11 . . . . . . . . . . . 8 11 13 3 . . . . Slashing 85 | . . . . . . 20 3 2 . 4 20 1 3 9 2 19 2 . . . . . . . . Piercing 45 | . . . . . . . . . . . . . . . . . . . . . 7 . . . 38 Sneak Attacks 27 | . . . . . 2 8 . . . . 3 . . . . 7 . . . . 4 . . . 3 Combat Hostiles . | . . . . . . . . . . . . . . . . . . . . . . . . . . Follow-up Attacks . | . . . . . . . . . . . . . . . . . . . . . . . . . . Damage Inflicted 30570 | 276 846 402 148 151 3161 805 . 371 . 265 848 258 419 . 541 1948 166 56 3024 488 2563 8227 1775 2646 1186 Guns 14384 | 276 740 277 148 100 2557 559 . 12 . 265 630 233 53 . 183 719 64 21 882 488 845 2945 413 1974 . Cannons 6053 | . 106 . . . . . . . . . . . . . . 434 102 35 1817 . 839 1352 475 585 308 Explosions 7465 | . . 114 . . 442 . . 359 . . . 25 366 . 358 250 . . 325 . 428 3824 887 87 . Melee 2370 | . . . . . 92 246 . . . . 218 . . . . 545 . . . . 451 . . . 818 Ramming 298 | . . 11 . 51 70 . . . . . . . . . . . . . . . . 106 . . 60 Kinetic 5449 | 276 579 277 148 100 613 . . . . . . . . . . 410 64 21 580 155 232 1282 73 639 . Thermal 14106 | . 267 . . . 1944 559 . 12 . 265 630 233 53 . 183 743 102 35 1186 27 1497 3240 815 2007 308 Explosive 6858 | . . 114 . . 442 . . 359 . . . 25 366 . 358 . . . 325 . 383 3599 887 . . Electromagnetic 250 | . . . . . . . . . . . . . . . . 250 . . . . . . . . . Impact 152 | . . . . . 92 . . . . . . . . . . . . . . . 60 . . . . Slashing 1009 | . . . . . . 246 . . . . 218 . . . . 545 . . . . . . . . . Piercing 1209 | . . . . . . . . . . . . . . . . . . . . . 391 . . . 818 Entropic 1239 | . . . . . . . . . . . . . . . . . . . 933 306 . . . . . Highest Corruption 22 | . . . . . . . . . . . . . . . . 2 . . 6 6 1 9 11 11 22 Average Corruption 5 | . . . . . . . . . . . . . . . . 1 . . 5 6 1 3 10 9 13 Corruption Purged 13 | . . . . . . . . . . . . . . . . 2 . . . . . . . 11 . Corruption Blocked 11 | . . . . . . . . . . . . . . . . . . . 11 . . . . . . Effects 96 | . . . . . . . . . . . . . . . . 5 . . 13 26 . 20 9 17 6 Message Errors 16 | . . . . . . . . . . . . . . . . 1 . . 2 6 . 1 1 3 2 Matter Fused 26 | . . . . . . . . . . . . . . . . 2 . . 4 6 . 4 3 4 3 Heat Flow Errors 14 | . . . . . . . . . . . . . . . . 1 . . 2 6 . 3 1 1 . Energy Discharges 10 | . . . . . . . . . . . . . . . . . . . 1 3 . 3 1 2 . Parts Rejected 3 | . . . . . . . . . . . . . . . . . . . 1 . . 1 . 1 . Data Loss (minor) 12 | . . . . . . . . . . . . . . . . . . . 2 2 . 5 . 3 . Data Loss (major) 3 | . . . . . . . . . . . . . . . . . . . . 1 . 1 1 . . Misfires 4 | . . . . . . . . . . . . . . . . . . . . . . 2 1 1 . Alerts 4 | . . . . . . . . . . . . . . . . 1 . . . 2 . . 1 . . Misdirections 1 | . . . . . . . . . . . . . . . . . . . . . . . . . 1 Weapon Failures 3 | . . . . . . . . . . . . . . . . . . . 1 . . . . 2 . Overload Shots . | . . . . . . . . . . . . . . . . . . . . . . . . . . Overflow Damage 1295 | . . 8 . . 128 73 . . . . 27 14 34 . 72 191 . . 130 . 284 86 20 21 207 Projectiles 262 | . . . . . . . . . . . . . . . . 12 . . 129 . 57 34 9 21 . Explosions 276 | . . 8 . . 78 . . . . . . 14 34 . 72 . . . 1 . 22 36 11 . . Melee 757 | . . . . . 50 73 . . . . 27 . . . . 179 . . . . 205 16 . . 207 Knockbacks 4 | . 3 . . . . . . . . . . . . . . . . . . . . 1 . . . Impact 1 | . . . . . . . . . . . . . . . . . . . . . . 1 . . . Kinetic 3 | . 3 . . . . . . . . . . . . . . . . . . . . . . . . Secondary . | . . . . . . . . . . . . . . . . . . . . . . . . . . Self-Inflicted Damage 464 | . . 38 . . 11 . . . . . . 26 19 . . . . . . . 118 135 . 92 25 Shots 10 | . . 1 . . 1 . . . . . . 1 1 . . . . . . . 2 3 . 1 . Rammed 24 | . . 2 . . . . . . . . . . . . . . . . . . . . . . 22 Targets Rammed 35 | . . 2 . 3 3 . . . . . . . . . . . . . . . . 5 . . 22 Kicked 11 | . . . . 3 3 . . . . . . . . . . . . . . . . 5 . . . Crushed . | . . . . . . . . . . . . . . . . . . . . . . . . . . Highest Temperature 429 | . 210 7 . 12 36 18 . . . 9 90 54 . . 159 429 141 64 304 303 14 263 190 278 132 Average Temperature 65 | . 46 3 . 8 10 8 . . . 4 39 29 . . 84 132 66 27 83 96 3 84 21 59 40 Received Heat Transfer 2542 | . 141 84 . 18 333 120 . . . . 108 48 . . 36 96 31 . 388 12 159 734 54 135 45 Effects 8 | . . . . . . . . . . . . . . . . 6 . . . 2 . . . . . Shutdowns 1 | . . . . . . . . . . . . . . . . 1 . . . . . . . . . Energy Bleed 1 | . . . . . . . . . . . . . . . . 1 . . . . . . . . . Interference 2 | . . . . . . . . . . . . . . . . . . . . 2 . . . . . Short Circuit 2 | . . . . . . . . . . . . . . . . 2 . . . . . . . . . Damage (minor) 1 | . . . . . . . . . . . . . . . . 1 . . . . . . . . . Damage (major) 1 | . . . . . . . . . . . . . . . . 1 . . . . . . . . . Siege Activations . | . . . . . . . . . . . . . . . . . . . . . . . . . . Robots Corrupted . | . . . . . . . . . . . . . . . . . . . . . . . . . . Combat Hostiles . | . . . . . . . . . . . . . . . . . . . . . . . . . . Parts Fried 6 | . . . . . 4 . . . . . . . . . . . . . 1 . 1 . . . . Impact Corruptions 8 | . . . . . 4 . . . . . . . . . . . . . . . 2 1 . . 1 Robots Melted 7 | . . . . . 1 . . . . 1 1 . . . 1 . . . . . . 1 1 1 . Combat Hostiles 7 | . . . . . 1 . . . . 1 1 . . . 1 . . . . . . 1 1 1 . Parts Melted 46 | . 4 . . . 10 3 . . . 4 7 2 . . 3 . . 1 . . 1 3 2 6 . Heat Transferred 19012 | . 888 . . . 4585 1225 . 25 . 600 1375 525 125 . 296 990 111 37 989 37 925 2825 925 2344 185 Parts Sabotaged . | . . . . . . . . . . . . . . . . . . . . . . . . . . Parts Stolen . | . . . . . . . . . . . . . . . . . . . . . . . . . . Parts Stripped . | . . . . . . . . . . . . . . . . . . . . . . . . . . Power Chain Reactions 3 | . . . . . . . . . . . . . . . . . . . . . 1 1 . 1 . Alert | -11 -10 -10 -10 -9 -8 -7 -7 -7 -7 -6 -6 -6 -6 -6 -5 -5 -5 -5 -5 -4 -4 -4 -4 -4 -3 ------- Run | Yrd Mat Min Exi Min Mat Fac Low Low Dat Pro Fac Low Low Zio Pro Fac Upp Upp War Pro Fac Ext Cet Arc Res Peak Influence 1542 | 25 249 109 . 42 431 214 . . . . 97 . . . . 389 . . . . 349 1542 1047 632 179 Initial 816 | . 16 9 . . . 130 . . . . 31 . . . . 12 . . . . 31 170 816 418 68 Average 209 | 11 62 29 . 10 199 135 . . . . 36 . . . . 76 . . . . 177 761 973 416 105 Maximum Alert Level 4 | . 1 . . . 2 1 . . . . . . . . . 1 . . . . 1 4 3 2 . Low Security (%) 67 | 100 90 100 . 100 54 76 . . . . 100 . . . . 87 . . . . 62 4 . . 100 Level 1 18 | . 9 . . . 40 23 . . . . . . . . . 12 . . . . 37 34 . 33 . Level 2 7 | . . . . . 4 . . . . . . . . . . . . . . . . 10 . 66 . Level 3 4 | . . . . . . . . . . . . . . . . . . . . . . 19 100 . . Level 4 3 | . . . . . . . . . . . . . . . . . . . . . . 32 . . . Level 5 . | . . . . . . . . . . . . . . . . . . . . . . . . . . High Security . | . . . . . . . . . . . . . . . . . . . . . . . . . . Max Security . | . . . . . . . . . . . . . . . . . . . . . . . . . . Squads Dispatched 22 | . 3 1 . . 2 1 . . . . 3 . . . . 2 . . . . 1 7 . . 2 Investigation 6 | . 2 1 . . 2 . . . . . . . . . . . . . . . . 1 . . . Extermination 6 | . . . . . . 1 . . . . 2 . . . . 2 . . . . . . . . 1 Reinforcement 5 | . 1 . . . . . . . . . 1 . . . . . . . . . 1 1 . . 1 Assault 5 | . . . . . . . . . . . . . . . . . . . . . . 5 . . . Garrison . | . . . . . . . . . . . . . . . . . . . . . . . . . . Intercept . | . . . . . . . . . . . . . . . . . . . . . . . . . . Searches Triggered . | . . . . . . . . . . . . . . . . . . . . . . . . . . Construction Impeded 1 | . . . . . . . . . . . . . . . . . . . . . . 1 . . . Haulers Reinforced . | . . . . . . . . . . . . . . . . . . . . . . . . . . Active Scanning Responses . | . . . . . . . . . . . . . . . . . . . . . . . . . . Cargo Convoy Interrupts . | . . . . . . . . . . . . . . . . . . . . . . . . . . Stealth | -11 -10 -10 -10 -9 -8 -7 -7 -7 -7 -6 -6 -6 -6 -6 -5 -5 -5 -5 -5 -4 -4 -4 -4 -4 -3 --------- Run | Yrd Mat Min Exi Min Mat Fac Low Low Dat Pro Fac Low Low Zio Pro Fac Upp Upp War Pro Fac Ext Cet Arc Res Distress Signals 7 | . 1 . . . 1 1 . . . . . . . . . . . . . . . 2 . 1 1 Communications Jammed 46 | . . . . . . . . . . . . . . . . . . . . . 4 . . . 42 Distress Signals 45 | . . . . . . . . . . . . . . . . . . . . . 3 . . . 42 Times Spotted 324 | . 22 7 . 2 48 6 . 3 . 2 5 5 5 . 3 14 1 4 67 3 12 59 13 25 18 Peak Tracking Total 11 | . 3 3 . 1 4 4 . 2 . 2 1 3 3 . 1 8 1 5 11 2 4 10 7 1 11 Tactical Retreats 21 | . 2 1 . . 4 . . . . . . 1 . . . 2 . 1 1 . 1 6 . . 2 Traps | -11 -10 -10 -10 -9 -8 -7 -7 -7 -7 -6 -6 -6 -6 -6 -5 -5 -5 -5 -5 -4 -4 -4 -4 -4 -3 ------- Run | Yrd Mat Min Exi Min Mat Fac Low Low Dat Pro Fac Low Low Zio Pro Fac Upp Upp War Pro Fac Ext Cet Arc Res Traps Triggered 3 | . 1 . . . . . . . . . . . . . . . . . . . . 2 . . . Indirectly . | . . . . . . . . . . . . . . . . . . . . . . . . . . Trap Hack Attempts . | . . . . . . . . . . . . . . . . . . . . . . . . . . Triggered . | . . . . . . . . . . . . . . . . . . . . . . . . . . Disarmed . | . . . . . . . . . . . . . . . . . . . . . . . . . . Reprogrammed . | . . . . . . . . . . . . . . . . . . . . . . . . . . Reused . | . . . . . . . . . . . . . . . . . . . . . . . . . . Traps Extracted . | . . . . . . . . . . . . . . . . . . . . . . . . . . Installed . | . . . . . . . . . . . . . . . . . . . . . . . . . . Triggered 10 | . . . . . . . . . . . . . . . . . . . 9 . . 1 . . . Machines | -11 -10 -10 -10 -9 -8 -7 -7 -7 -7 -6 -6 -6 -6 -6 -5 -5 -5 -5 -5 -4 -4 -4 -4 -4 -3 ---------- Run | Yrd Mat Min Exi Min Mat Fac Low Low Dat Pro Fac Low Low Zio Pro Fac Upp Upp War Pro Fac Ext Cet Arc Res Machines Disabled 25 | . . . . . 3 . . . . . . . . . . 4 . . . . 5 5 1 6 1 Max in Single Turn 4 | . . . . . 1 . . . . . . . . . . 4 . . . . 2 1 1 1 1 Garrison Access 2 | . . . . . . . . . . . 1 . . . . . . . . . 1 . . . . Machines Repaired . | . . . . . . . . . . . . . . . . . . . . . . . . . . Machines Dismantled . | . . . . . . . . . . . . . . . . . . . . . . . . . . Machines Sabotaged . | . . . . . . . . . . . . . . . . . . . . . . . . . . Overloaded Fab Kills . | . . . . . . . . . . . . . . . . . . . . . . . . . . Hacking | -11 -10 -10 -10 -9 -8 -7 -7 -7 -7 -6 -6 -6 -6 -6 -5 -5 -5 -5 -5 -4 -4 -4 -4 -4 -3 --------- Run | Yrd Mat Min Exi Min Mat Fac Low Low Dat Pro Fac Low Low Zio Pro Fac Upp Upp War Pro Fac Ext Cet Arc Res Machines Accessed 58 | . 8 1 2 1 12 6 2 1 4 . 5 . . . . 1 2 1 5 . 3 1 1 . 2 Terminals 26 | . 6 . . 1 9 3 . . . . 2 . . . . . 1 . . . . 1 1 . 2 Fabricators . | . . . . . . . . . . . . . . . . . . . . . . . . . . Repair Stations 4 | . . . . . 1 1 . . . . 1 . . . . 1 . . . . . . . . . Recycling Units 4 | . 2 . . . 1 . . . . . . . . . . . . . . . 1 . . . . Scanalyzers 3 | . . . . . 1 1 . . . . 1 . . . . . . . . . . . . . . Garrison Access 4 | . . . . . . 1 . . . . 1 . . . . . . . . . 2 . . . . Total Hacks 160 | . 18 1 5 3 31 16 11 1 31 . 14 . . . . 3 2 1 11 . 6 1 3 . 2 Successful 100 | . 7 1 5 . 11 10 11 1 31 . 4 . . . . 2 2 1 11 . 2 . . . 1 Failed 60 | . 11 . . 3 20 6 . . . . 10 . . . . 1 . . . . 4 1 3 . 1 Catastrophic 13 | . 2 . . 2 3 2 . . . . . . . . . . . . . . 2 . 2 . . Database Lockouts . | . . . . . . . . . . . . . . . . . . . . . . . . . . Manual 50 | . 12 . 1 3 19 2 . . . . 9 . . . . . . . 1 . . 1 . . 2 Terminals 61 | . 16 . . 3 22 4 . . . . 9 . . . . . 1 . . . . 1 3 . 2 Fabricators . | . . . . . . . . . . . . . . . . . . . . . . . . . . Repair Stations 15 | . . . . . 2 9 . . . . 1 . . . . 3 . . . . . . . . . Recycling Units 7 | . 2 . . . 3 . . . . . . . . . . . . . . . 2 . . . . Scanalyzers 8 | . . . . . 4 1 . . . . 3 . . . . . . . . . . . . . . Garrison Access 7 | . . . . . . 2 . . . . 1 . . . . . . . . . 4 . . . . Terminal Hacks 75 | . 4 1 5 . 6 1 11 1 31 . 1 . . . . . 2 1 11 . . . . . . Record 35 | . . . 4 . . . 10 . 11 . . . . . . . 1 . 9 . . . . . . Part Schematic 12 | . . . . . . . . . 12 . . . . . . . . . . . . . . . . Robot Schematic 5 | . . . . . . . . . 5 . . . . . . . . . . . . . . . . Prototype ID Bank 5 | . . . . . 1 1 . . 3 . . . . . . . . . . . . . . . . Open Door 7 | . . 1 . . . . 1 1 . . . . . . . . 1 1 2 . . . . . . Branch Access Points 1 | . . . . . . . . . . . 1 . . . . . . . . . . . . . . Unreport Threat 5 | . 2 . . . 3 . . . . . . . . . . . . . . . . . . . . Locate Traps 2 | . 1 . . . 1 . . . . . . . . . . . . . . . . . . . . Hauler Manifests 2 | . 1 . . . 1 . . . . . . . . . . . . . . . . . . . . Derelict Proto ID Bank 1 | . . . 1 . . . . . . . . . . . . . . . . . . . . . . Fabricator Hacks . | . . . . . . . . . . . . . . . . . . . . . . . . . . Repair Station Hacks 12 | . . . . . 2 8 . . . . . . . . . 2 . . . . . . . . . Scan Component 7 | . . . . . 2 4 . . . . . . . . . 1 . . . . . . . . . Repair 5 | . . . . . . 4 . . . . . . . . . 1 . . . . . . . . . Recycling Unit Hacks 1 | . . . . . . . . . . . . . . . . . . . . . 1 . . . . Retrieve Components 1 | . . . . . . . . . . . . . . . . . . . . . 1 . . . . Scanalyzer 3 | . . . . . 2 1 . . . . . . . . . . . . . . . . . . . Insert Component 2 | . . . . . 1 1 . . . . . . . . . . . . . . . . . . . Analyze 1 | . . . . . 1 . . . . . . . . . . . . . . . . . . . . Garrison Access Hacks 2 | . . . . . . . . . . . 1 . . . . . . . . . 1 . . . . Seal Access 2 | . . . . . . . . . . . 1 . . . . . . . . . 1 . . . . Unauthorized Hacks 7 | . 3 . . . 1 . . . . . 2 . . . . . . . . . . . . . 1 Terminals 5 | . 1 . . . 1 . . . . . 2 . . . . . . . . . . . . . 1 Assimilate 1 | . . . . . . . . . . . . . . . . . . . . . . . . . 1 Botnet 4 | . 1 . . . 1 . . . . . 2 . . . . . . . . . . . . . . Fabricators . | . . . . . . . . . . . . . . . . . . . . . . . . . . Repair Stations . | . . . . . . . . . . . . . . . . . . . . . . . . . . Recycling Units 2 | . 2 . . . . . . . . . . . . . . . . . . . . . . . . Tunnel 2 | . 2 . . . . . . . . . . . . . . . . . . . . . . . . Scanalyzers . | . . . . . . . . . . . . . . . . . . . . . . . . . . Garrison Access . | . . . . . . . . . . . . . . . . . . . . . . . . . . Data Cores Recovered . | . . . . . . . . . . . . . . . . . . . . . . . . . . Used . | . . . . . . . . . . . . . . . . . . . . . . . . . . Hacking Detections 34 | . 6 . . 1 12 6 . . . . 4 . . . . 1 . . . . 1 1 1 . 1 Full Trace Events 2 | . . . . . 2 . . . . . . . . . . . . . . . . . . . . Feedback Events . | . . . . . . . . . . . . . . . . . . . . . . . . . . Feedback Blocked . | . . . . . . . . . . . . . . . . . . . . . . . . . . Robot Schematics Acquired 8 | . . . . . . . . . 5 . . . . 3 . . . . . . . . . . . Robots Built . | . . . . . . . . . . . . . . . . . . . . . . . . . . Authchips . | . . . . . . . . . . . . . . . . . . . . . . . . . . Time . | . . . . . . . . . . . . . . . . . . . . . . . . . . Total Robot Build Rating . | . . . . . . . . . . . . . . . . . . . . . . . . . . Part Schematics Acquired 28 | . . . . . 1 . . . 12 . . . . 15 . . . . . . . . . . . Parts Built . | . . . . . . . . . . . . . . . . . . . . . . . . . . Authchips . | . . . . . . . . . . . . . . . . . . . . . . . . . . Time . | . . . . . . . . . . . . . . . . . . . . . . . . . . Total Part Build Rating . | . . . . . . . . . . . . . . . . . . . . . . . . . . Parts Repaired 5 | . . . . . . 4 . . . . . . . . . 1 . . . . . . . . . Time 208 | . . . . . . 158 . . . . . . . . . 50 . . . . . . . . . Parts Recycled . | . . . . . . . . . . . . . . . . . . . . . . . . . . Recycled Matter . | . . . . . . . . . . . . . . . . . . . . . . . . . . Retrieved Matter . | . . . . . . . . . . . . . . . . . . . . . . . . . . Retrieved Components 1 | . . . . . . . . . . . . . . . . . . . . . 1 . . . . Parts Scanalyzed 1 | . . . . . 1 . . . . . . . . . . . . . . . . . . . . Part Schematics Acquired 1 | . . . . . 1 . . . . . . . . . . . . . . . . . . . . Parts Damaged . | . . . . . . . . . . . . . . . . . . . . . . . . . . Bothacking | -11 -10 -10 -10 -9 -8 -7 -7 -7 -7 -6 -6 -6 -6 -6 -5 -5 -5 -5 -5 -4 -4 -4 -4 -4 -3 ------------ Run | Yrd Mat Min Exi Min Mat Fac Low Low Dat Pro Fac Low Low Zio Pro Fac Upp Upp War Pro Fac Ext Cet Arc Res Used RIF Installer . | . . . . . . . . . . . . . . . . . . . . . . . . . . Robots Hacked 5 | . . . . . . 4 . . . . . . . . . . . . . . . . . . 1 Non-combat 5 | . . . . . . 4 . . . . . . . . . . . . . . . . . . 1 Combat . | . . . . . . . . . . . . . . . . . . . . . . . . . . Robot Hacks Applied 6 | . . . . . . 5 . . . . . . . . . . . . . . . . . . 1 parse_system 1 | . . . . . . . . . . . . . . . . . . . . . . . . . 1 no_distress 4 | . . . . . . 4 . . . . . . . . . . . . . . . . . . . find_recycling 1 | . . . . . . 1 . . . . . . . . . . . . . . . . . . . Relay Couplers Released 1 | . . . . . . . . . . . . . . . . . . . . . 1 . . . . Machine Destruction 1 | . . . . . . . . . . . . . . . . . . . . . 1 . . . . Fabnet Peak Effective % . | . . . . . . . . . . . . . . . . . . . . . . . . . . Robots Rewired 11 | . . . 3 . . . . . . . . . . . 2 . . . . . . 6 . . . Allies Hacked . | . . . . . . . . . . . . . . . . . . . . . . . . . . Hacks Repelled . | . . . . . . . . . . . . . . . . . . . . . . . . . . Allies | -11 -10 -10 -10 -9 -8 -7 -7 -7 -7 -6 -6 -6 -6 -6 -5 -5 -5 -5 -5 -4 -4 -4 -4 -4 -3 -------- Run | Yrd Mat Min Exi Min Mat Fac Low Low Dat Pro Fac Low Low Zio Pro Fac Upp Upp War Pro Fac Ext Cet Arc Res Total Allies 23 | . . . 3 2 . . . . . . . . . . 2 . . . . . . 15 . . 1 Largest Group 10 | . . . 3 4 2 . . . . . . . . . 2 2 . . . . . 10 . . 1 Highest-Rated Group 537 | . . . 37 75 29 . . . . . . . . . 59 59 . . . . . 537 . . 26 Highest-Rated Ally 159 | . . . 21 31 21 . . . . . . . . . 30 30 . . . . . 159 . . 26 Total Orders 11 | . . . . . . . . . . . . . . . . 6 . . . . 3 . . . 2 STAY 2 | . . . . . . . . . . . . . . . . 2 . . . . . . . . . RETURN 9 | . . . . . . . . . . . . . . . . 4 . . . . 3 . . . 2 Ally Attacks 173 | . . . . 6 7 . . . . . . . . . . 11 . . . . . 149 . . . Total Damage 4523 | . . . . 44 146 . . . . . . . . . . 148 . . . . . 4185 . . . Kills 33 | . . . . 2 2 . . . . . . . . . . 3 . . . . . 26 . . . Allies Corrupted 1 | . . . . . . . . . . . . . . . . . . . . . . 1 . . . Allies Melted 1 | . . . . . . . . . . . . . . . . . . . . . . 1 . . . Intel | -11 -10 -10 -10 -9 -8 -7 -7 -7 -7 -6 -6 -6 -6 -6 -5 -5 -5 -5 -5 -4 -4 -4 -4 -4 -3 ------- Run | Yrd Mat Min Exi Min Mat Fac Low Low Dat Pro Fac Low Low Zio Pro Fac Upp Upp War Pro Fac Ext Cet Arc Res Robot Analysis Total . | . . . . . . . . . . . . . . . . . . . . . . . . . . Derelict Logs Recovered 15 | . . 1 . 1 . . . 1 . 2 . . 2 2 1 . 2 1 . 2 . . . . . Drone Launches 9 | . . . . . . . . . . . . . . . . 4 . . . . 3 . . . 2 Drone Recoveries 9 | . . . . . . . . . . . . . . . . 4 . . . . 3 . . . 2 Decoded 0b10 Intel 2 | . . . . . . . . . . . . . . . . 2 . . . . . . . . . Exits 2 | . . . . . . . . . . . . . . . . 2 . . . . . . . . . Exploration | -11 -10 -10 -10 -9 -8 -7 -7 -7 -7 -6 -6 -6 -6 -6 -5 -5 -5 -5 -5 -4 -4 -4 -4 -4 -3 ------------- Run | Yrd Mat Min Exi Min Mat Fac Low Low Dat Pro Fac Low Low Zio Pro Fac Upp Upp War Pro Fac Ext Cet Arc Res Turns Passed 26182 | 183 1960 1543 702 816 1866 861 686 747 93 762 1136 622 479 1625 1194 2137 1088 697 1574 998 772 1669 304 1205 463 Spaces Moved 16378 | 80 774 609 506 765 1281 561 520 685 88 598 822 541 423 1397 774 1225 717 428 870 470 431 834 91 426 462 Core 69 | 11 . . . . . . . . . . . . . . . . . . . . . . . 2 56 Treads 1926 | 69 774 609 123 . . . . . . . . . . . . . . . . . . . 63 288 . Legs 11204 | . . . 383 765 1281 561 520 685 88 598 822 541 423 1397 774 618 . . 1 470 431 834 12 . . Wheels 2637 | . . . . . . . . . . . . . . . . 607 717 428 869 . . . 16 . . Hover 542 | . . . . . . . . . . . . . . . . . . . . . . . . 136 406 Flight . | . . . . . . . . . . . . . . . . . . . . . . . . . . Fastest Speed 44 | 50 160 240 90 90 90 90 105 105 105 105 70 70 105 105 105 70 145 145 130 110 110 110 190 44 44 Average Speed 124 | 148 217 240 126 90 93 91 105 105 105 105 104 104 105 105 105 127 145 145 145 122 111 132 237 191 45 Slowest Speed 900 | 160 240 240 240 90 170 105 105 105 105 105 105 105 105 105 105 180 145 145 176 180 112 190 260 900 111 Overloaded Moves 11 | . . . . . . . . . . . 4 3 . . . 4 . . . . . . . . . Propulsion Burnouts . | . . . . . . . . . . . . . . . . . . . . . . . . . . Robots Hopped . | . . . . . . . . . . . . . . . . . . . . . . . . . . Cave-ins Triggered . | . . . . . . . . . . . . . . . . . . . . . . . . . . Exploration Rate (%) 62 | 4 89 86 92 98 67 16 55 72 70 77 14 74 63 85 73 25 85 66 95 62 9 85 54 99 12 Regions Visited 25 Branch Regions 18 Pre-discovered Areas 11 | . 2 . 1 1 . . 2 . 1 1 . . . 1 . . 1 . . 1 . . . . . Known Exits Taken 18 | . . . . . . 1 1 1 1 1 1 1 1 1 1 1 1 1 1 1 1 . 1 1 . Unknown Exits Taken 7 | 1 1 1 1 1 1 . . . . . . . . . . . . . . . . 1 . . . Scrap Searched 24 | . . 1 . 2 . . 1 3 . 1 . 2 4 4 . . 3 1 . 2 . . . . . Spaces Dug 224 | . . 6 . . 9 18 3 2 . 20 17 11 40 . 36 20 3 13 2 10 3 . . . 11 Terrain Destroyed 681 | . . 24 . . 26 18 3 45 . 20 17 11 55 . 47 24 4 15 19 19 59 184 65 13 13 Melee 100 | . . . . . 6 18 3 2 . 4 17 1 3 . 2 11 2 6 2 10 3 . . . 10 Projectile 90 | . . . . . . . . . . . . . . . 1 13 2 9 6 9 3 32 3 9 3 AOE 491 | . . 24 . . 20 . . 43 . 16 . 10 52 . 44 . . . 11 . 53 152 62 4 . Terrain Rammed . | . . . . . . . . . . . . . . . . . . . . . . . . . . Walls Destroyed . | . . . . . . . . . . . . . . . . . . . . . . . . . . Machines Disabled . | . . . . . . . . . . . . . . . . . . . . . . . . . . Actions | -11 -10 -10 -10 -9 -8 -7 -7 -7 -7 -6 -6 -6 -6 -6 -5 -5 -5 -5 -5 -4 -4 -4 -4 -4 -3 --------- Run | Yrd Mat Min Exi Min Mat Fac Low Low Dat Pro Fac Low Low Zio Pro Fac Upp Upp War Pro Fac Ext Cet Arc Res Total 20680 | 107 942 660 554 882 1733 826 655 702 88 706 1020 576 443 1550 1131 1705 753 482 1064 830 634 1183 134 697 623 Wait 2286 | . 61 1 3 105 195 174 127 2 . 90 117 12 . 73 329 312 10 25 32 301 84 30 . 136 67 Move 16353 | 79 773 608 505 764 1280 560 519 684 87 597 821 540 422 1396 773 1224 716 427 869 469 430 833 90 425 462 Hop . | . . . . . . . . . . . . . . . . . . . . . . . . . . Pick Up 203 | 2 23 7 2 2 31 9 1 1 . . 6 2 2 22 . 23 5 4 20 5 20 12 . 4 . Fast Attach 123 | 7 1 1 4 . 18 3 . 1 . . . . 1 6 . 4 2 . 13 . 3 22 5 21 11 Attach 48 | . 1 . . . 4 2 . . . . 2 1 . 2 . 6 . . 5 5 6 5 6 3 . Detach 17 | . 1 . 1 . . . . . . . . . . 4 . . . . 2 . 1 1 2 4 1 Swap 309 | . 12 8 . . 31 17 4 5 1 8 31 9 7 14 10 37 6 4 19 9 17 44 6 7 3 Drop 296 | . 12 13 6 2 54 10 1 2 . . 8 1 2 24 1 29 7 4 31 1 15 36 1 30 6 Fire 709 | 19 58 20 7 6 105 15 . 5 . 7 15 10 6 . 13 51 5 10 62 27 48 118 24 67 11 Melee 197 | . . . . . 12 36 3 2 . 4 20 1 3 9 2 19 2 8 11 13 10 2 . . 40 Ram 22 | . . . . . . . . . . . . . . . . . . . . . . . . . 22 Kick 11 | . . . . 3 3 . . . . . . . . . . . . . . . . 5 . . . Crush 2 | . . 2 . . . . . . . . . . . . . . . . . . . . . . . Escape Stasis 5 | . . . . . . . . . . . . . . . . . . . . . . 5 . . . Rewire 99 | . . . 26 . . . . . . . . . . . 3 . . . . . . 70 . . . Trap . | . . . . . . . . . . . . . . . . . . . . . . . . . . Miscellaneous . | . . . . . . . . . . . . . . . . . . . . . . . . . . Route ------- -11/Scrapyard -10/Materials (discovered 4 exits: [*Mat x2] / *Min / [*Sub]) -10/Mines (discovered 3 exits: [*Mat x2] / *Exi) -10/Exiles -9/Mines (discovered 2 exits: *Mat x2) -8/Materials (discovered 2 exits: *Fac x2) -7/Factory (discovered 3 exits: *Fac / *Low x2) -7/Lower Caves -7/Lower Caves (discovered 2 exits: *Fac / *Dat) -7/Data Miner -6/Proximity Caves -6/Factory (discovered 2 exits: *Low x2) -6/Lower Caves -6/Lower Caves -6/Zion -5/Proximity Caves -5/Factory (discovered 6 exits: *Fac x4 / *Upp x2) -5/Upper Caves -5/Upper Caves (discovered 2 exits: *Fac / *War) -5/Warlord -4/Proximity Caves -4/Factory (discovered 2 exits: *Res / *Ext) -4/Extension (discovered 2 exits: *Res / *Cet) -4/Cetus -4/Archives (discovered 3 exits: *Res / *Hub x2) -3/Research (discovered 1 exit: Res) History --------- Turn | Location | Event 9 | -11/Scrapyard | Discovered new exit (range 15) 184 | -11/Scrapyard | Entered Materials 315 | -10/Materials | Build established: Mutant 568 | -10/Materials | Discovered new exit (range 15) 1163 | -10/Materials | Discovered new exit (range 8) 1314 | -10/Materials | Discovered new exit (range 5) 1893 | -10/Materials | Discovered new exit (range 5) 2144 | -10/Materials | Entered Mines 2211 | -10/Mines | Learned Materials trap positions 2504 | -10/Mines | Found a hidden stash of uninstalled traps 2607 | -10/Mines | Deemed a non-threat by the Exiles lab entrance 2755 | -10/Mines | Discovered new exit (range 14) 2983 | -10/Mines | Joined a pair of Derelicts in attacking an 0b10 outpost 3299 | -10/Mines | Build established: Scavenger-Mutant 3337 | -10/Mines | Discovered new exit (range 7) 3382 | -10/Mines | Met a Derelict shopkeep closing up shop 3677 | -10/Mines | Discovered new exit (range 5) 3687 | -10/Mines | Entered Exiles 3687 | -10/Exiles | Found Exiles lab destroyed 3986 | -10/Exiles | Opened EX-Vault 4002 | -10/Exiles | Found Potential Leg 4005 | -10/Exiles | Found Potential Leg 4295 | -10/Exiles | Build established: Mutant 4301 | -10/Exiles | Learned location of Zion (-6) 4370 | -10/Exiles | Discovered new exit (range 14) 4389 | -10/Exiles | Entered Mines 4389 | -9/Mines | Accompanied by 3 allies 4580 | -9/Mines | Discovered new exit (range 8) 4687 | -9/Mines | A weapon hastily lodged in a ceiling crevice suddenly fell to the ground 4874 | -9/Mines | Discovered new exit (range 12) 4964 | -9/Mines | Found a damaged Exp. Sensor Array with a note attached 4974 | -9/Mines | Found Prototype Device 5205 | -9/Mines | Entered Materials 5205 | -8/Materials | Accompanied by 2 allies 5205 | -8/Materials | Evolved 4 slots: Propulsion x2, Utility x2 5206 | -8/Materials | Loaded intel: 16 trap records 5564 | -8/Materials | Build established: Scavenger-Mutant 6266 | -8/Materials | Discovered new exit (range 14) 6306 | -8/Materials | Identified Exp. Sensor Array 6678 | -8/Materials | Discovered new exit (range 3) 6817 | -8/Materials | Build established: Mutant 7071 | -8/Materials | Entered Factory 7071 | -7/Factory | Evolved 2 slots: Utility x2 7366 | -7/Factory | Discovered new exit (range 6) 7371 | -7/Factory | Build established: Assassin 7371 | -7/Factory | Identified exit to Lower Caves 7442 | -7/Factory | Discovered new exit (range 4) 7445 | -7/Factory | Identified exit to Factory 7500 | -7/Factory | Discovered exit to Lower Caves (range 11) 7728 | -7/Factory | Repaired Carbon-fiber Leg 7820 | -7/Factory | Repaired Gatling Laser 7870 | -7/Factory | Repaired Imp. Cooling System 7891 | -7/Factory | Build established: Mutant 7903 | -7/Factory | Repaired Imp. Aluminum Leg 7932 | -7/Factory | Entered Lower Caves 7933 | -7/Lower Caves | Encountered a Warlord checkpoint 8241 | -7/Lower Caves | Build established: Assassin 8437 | -7/Lower Caves | Discovered new exit (range 7) 8464 | -7/Lower Caves | Learned location of Extension (-4) 8464 | -7/Lower Caves | Learned location of Armory (-3) 8464 | -7/Lower Caves | Learned Factory trap positions 8464 | -7/Lower Caves | Learned Armory trap positions 8464 | -7/Lower Caves | Learned Factory emergency access door positions 8464 | -7/Lower Caves | Learned Extension terminal intel 8464 | -7/Lower Caves | Learned Armory garrison access intel 8581 | -7/Lower Caves | Identified exit to Lower Caves 8618 | -7/Lower Caves | Entered another Lower Caves area 8739 | -7/Lower Caves | Identified exit to Data Miner 8749 | -7/Lower Caves | Discovered exit to Factory (range 14) 9365 | -7/Lower Caves | Entered Data Miner 9365 | -7/Data Miner | Discovered new exit (range 6) 9385 | -7/Data Miner | Met Data Miner 9410 | -7/Data Miner | Learned location of Section 7 (-3) 9410 | -7/Data Miner | Acquired the access code to Warlord's prototype stash 9431 | -7/Data Miner | Received God Mode back door access code from Data Miner 9456 | -7/Data Miner | Identified exit to Proximity Caves 9458 | -7/Data Miner | Entered Proximity Caves 9499 | -6/Proximity Caves | Learned Factory stockpile data 10040 | -6/Proximity Caves | Discovered exit to Factory (range 15) 10220 | -6/Proximity Caves | Entered Factory 10220 | -6/Factory | Evolved 2 slots: Power x1, Utility x1 10221 | -6/Factory | Loaded intel: 88 trap records 10560 | -6/Factory | Identified exit to Lower Caves 11356 | -6/Factory | Entered Lower Caves 11383 | -6/Lower Caves | Build established: Hacker-Assassin 11762 | -6/Lower Caves | Attracted the attention of an 0b10 checkpoint 11931 | -6/Lower Caves | Discovered new exit (range 13) 11976 | -6/Lower Caves | Identified exit to Lower Caves 11978 | -6/Lower Caves | Entered another Lower Caves area 12126 | -6/Lower Caves | Build established: Hacker-Mutant 12304 | -6/Lower Caves | Discovered new exit (range 13) 12315 | -6/Lower Caves | Identified exit to Zion 12331 | -6/Lower Caves | Learned 4 Factory zone layouts 12345 | -6/Lower Caves | Learned Factory trap positions 12457 | -6/Lower Caves | Entered Zion 12480 | -6/Zion | Found CR-A16's Pointy Stick 12573 | -6/Zion | Discovered new exit (range 8) 12580 | -6/Zion | Identified exit to Proximity Caves 12604 | -6/Zion | Found Prototype Special Weapon 12605 | -6/Zion | Identified RU-N14's Throwing Claymores 12729 | -6/Zion | Learned location of Warlord (-5) 12791 | -6/Zion | Learned Factory emergency access door positions 12806 | -6/Zion | Learned location of 1 exit from Lower Caves 12832 | -6/Zion | Received a visual enhancement algorithm 12906 | -6/Zion | Build established: Hacker-Skirmisher 13038 | -6/Zion | Found Prototype Processor 13049 | -6/Zion | Identified Exp. Armor Integrity Analyzer 13058 | -6/Zion | Found Prototype Processor 13060 | -6/Zion | Identified Exp. Target Analyzer 13063 | -6/Zion | Found Prototype Processor 13083 | -6/Zion | Found Prototype Processor 13087 | -6/Zion | Identified Exp. Core Analyzer 13106 | -6/Zion | Identified Exp. Melee Analysis Suite 13106 | -6/Zion | Found Prototype Processor 13190 | -6/Zion | Identified Exp. Signal Interpreter 13360 | -6/Zion | Given the Hacking Drone Bay 13361 | -6/Zion | Found Prototype Device 13361 | -6/Zion | Identified Hacking Drone Bay 13763 | -6/Zion | Found Exp. Target Analyzer 13961 | -6/Zion | Build established: Derelict-Assassin 14053 | -6/Zion | Found RU-N14's Throwing Claymores 14055 | -6/Zion | Found RU-N14's Throwing Claymores 14082 | -6/Zion | Entered Proximity Caves 14685 | -5/Proximity Caves | Learned location of 1 exit from Factory 15124 | -5/Proximity Caves | Build established: Derelict-Skirmisher 15136 | -5/Proximity Caves | Attracted the attention of an 0b10 outpost 15175 | -5/Proximity Caves | Discovered new exit (range 8) 15181 | -5/Proximity Caves | Identified exit to Factory 15276 | -5/Proximity Caves | Entered Factory 15276 | -5/Factory | Accompanied by 2 allies 15276 | -5/Factory | Evolved 2 slots: Utility x2 15277 | -5/Factory | Identified exit to Factory 15279 | -5/Factory | Loaded intel: 109 trap records 16091 | -5/Factory | Build established: Derelict-Assassin 16586 | -5/Factory | Build established: Scavenger-Assassin 16852 | -5/Factory | Identified exit to Upper Caves 17047 | -5/Factory | Repaired Arm. Leg 17413 | -5/Factory | Entered Upper Caves 17808 | -5/Upper Caves | Attracted the attention of an 0b10 checkpoint 17876 | -5/Upper Caves | Learned Factory security intel 17981 | -5/Upper Caves | Discovered new exit (range 10) 17994 | -5/Upper Caves | Identified exit to Upper Caves 18110 | -5/Upper Caves | Build established: Scavenger-Skirmisher 18501 | -5/Upper Caves | Entered another Upper Caves area 18802 | -5/Upper Caves | Build established: Scavenger-Assassin 18848 | -5/Upper Caves | Encountered a Warlord checkpoint 19163 | -5/Upper Caves | Discovered new exit (range 20) 19195 | -5/Upper Caves | Identified exit to Warlord 19198 | -5/Upper Caves | Entered Warlord 19916 | -5/Warlord | Met Warlord 19935 | -5/Warlord | Opened Warlord's prototype stash 19940 | -5/Warlord | Found Prototype Reactor 19940 | -5/Warlord | Identified Vortex Chain Reactor 19941 | -5/Warlord | Warlord's base attacked by MAIN.C 19963 | -5/Warlord | Found Prototype Device 19963 | -5/Warlord | Identified Thermal Barrier 19976 | -5/Warlord | Found Prototype Device 19976 | -5/Warlord | Identified Exp. Cloaking Device 20078 | -5/Warlord | Found Prototype Energy Gun 20078 | -5/Warlord | Identified Vortex Shotgun 20086 | -5/Warlord | Found Prototype Energy Cannon 20086 | -5/Warlord | Identified Vortex Driver 20103 | -5/Warlord | Found Vortex Shotgun 20281 | -5/Warlord | Spotted B-86 Titan 20281 | -5/Warlord | Spotted B-75 Beast 20290 | -5/Warlord | Spotted Executioner 20290 | -5/Warlord | Spotted Striker 20291 | -5/Warlord | Warlord forces counterattacked 20321 | -5/Warlord | Spotted Striker 20415 | -5/Warlord | Build established: Derelict-Skirmisher 20486 | -5/Warlord | Spotted Striker 20487 | -5/Warlord | Lost 30 allies 20509 | -5/Warlord | Spotted Striker 20612 | -5/Warlord | Lost 4 allies 20616 | -5/Warlord | Warlord base infiltrated, sounded retreat 20640 | -5/Warlord | Opened side exit 20743 | -5/Warlord | Spotted Striker 20747 | -5/Warlord | Lost 3 allies 20755 | -5/Warlord | Discovered new exit (range 14) 20771 | -5/Warlord | Identified exit to Proximity Caves 20772 | -5/Warlord | Entered Proximity Caves 20788 | -4/Proximity Caves | Lost 3 allies 21201 | -4/Proximity Caves | Build established: Scavenger-Assassin 21661 | -4/Proximity Caves | Lost 4 parts (3u1w) 21751 | -4/Proximity Caves | Learned 8 Research zone layouts 21758 | -4/Proximity Caves | Discovered exit to Factory (range 10) 21770 | -4/Proximity Caves | Entered Factory 21770 | -4/Factory | Evolved 2 slots: Propulsion x1, Utility x1 21899 | -4/Factory | Build established: Mutant 22151 | -4/Factory | Found Prototype Launcher 22160 | -4/Factory | Identified Mni. Smartbomb Launcher 22173 | -4/Factory | Found Mni. Smartbomb Launcher 22247 | -4/Factory | Build established: Scavenger-Mutant 22257 | -4/Factory | Discovered new exit (range 11) 22268 | -4/Factory | Identified exit to Research 22456 | -4/Factory | Discovered new exit (range 6) 22541 | -4/Factory | Identified exit to Extension 22542 | -4/Factory | Entered Extension 22543 | -4/Extension | Loaded intel: 13 terminal locations 22588 | -4/Extension | Rescued a captive Derelict 22773 | -4/Extension | Lost 3 parts (1n1u1w) 22877 | -4/Extension | Rescued a captive Derelict 22901 | -4/Extension | Rescued A7 22995 | -4/Extension | Rescued a captive Derelict 23032 | -4/Extension | Rescued a captive Derelict 23032 | -4/Extension | Rescued a captive Derelict 23242 | -4/Extension | Disrupted transfer network 23321 | -4/Extension | Spotted B-86 Titan 23346 | -4/Extension | Spotted B-86 Titan 23351 | -4/Extension | Allies destroyed B-86 Titan 23359 | -4/Extension | Allies destroyed B-86 Titan 23388 | -4/Extension | Lost 4 allies 23542 | -4/Extension | First assault squad dispatched 23583 | -4/Extension | Rescued a captive Derelict 23621 | -4/Extension | Rescued a captive Derelict 23623 | -4/Extension | Rescued a captive Derelict 23705 | -4/Extension | Extracted ID and sensor layout for unrecognized location from A7's data core 23710 | -4/Extension | Lost 4 allies 23801 | -4/Extension | Build established: Scavenger-Skirmisher 23882 | -4/Extension | Lost 3 parts (1n2u) 23885 | -4/Extension | Lost 3 allies 23903 | -4/Extension | Destroyed 7 combat bots 24134 | -4/Extension | Lost 7 parts (2p2n3u) 24181 | -4/Extension | Build established: Scavenger-Mutant 24181 | -4/Extension | Discovered exit to Research (range 10) 24182 | -4/Extension | Discovered new exit (range 6) 24211 | -4/Extension | Entered Cetus 24230 | -4/Cetus | Spotted Cetus Guard 24230 | -4/Cetus | Spotted Cetus Guard 24230 | -4/Cetus | Spotted Cetus Guard 24230 | -4/Cetus | Spotted Cetus Guard 24248 | -4/Cetus | Destroyed Cetus Guard 24262 | -4/Cetus | Destroyed Cetus Guard 24274 | -4/Cetus | Destroyed Cetus Guard 24287 | -4/Cetus | Destroyed Cetus Guard 24316 | -4/Cetus | Lost 8 parts (1p3n2u2w) 24352 | -4/Cetus | Destroyed 7 combat bots 24359 | -4/Cetus | System corruption reached 10% 24460 | -4/Cetus | Discovered new exit (range 22) 24512 | -4/Cetus | Identified exit to Archives 24515 | -4/Cetus | Entered Archives 24594 | -4/Archives | Build established: Scavenger-Skirmisher 24748 | -4/Archives | Core integrity fell below 50% 24768 | -4/Archives | Discovered new exit (range 23) 24847 | -4/Archives | Lost 3 parts (1p1n1u) 24861 | -4/Archives | Discovered exit to Research (range 16) 24943 | -4/Archives | Discovered new exit (range 14) 25153 | -4/Archives | Unable to access archive contents 25236 | -4/Archives | Identified exit to Hub_04(d) 25720 | -4/Archives | Entered Research 25720 | -3/Research | Evolved 2 slots: Propulsion x1, Utility x1 25721 | -3/Research | Identified exit to Research 26088 | -3/Research | System corruption reached 10% 26148 | -3/Research | Core integrity fell below 50% 26165 | -3/Research | Core integrity fell below 20% 26183 | -3/Research | Destroyed by S-43 Plague with Heavy Machine Gun Last Messages --------------- SECURING TERMINAL." 26165_ O-16 Technician sends out distress signal. 26167_ Penetrated by Slug. 26167_ Imp. Hacking Suite destroyed. 26167_ Slug penetrates Wall. 26169_ System corrupted: Matter fused (-8). 26169_ O-16 Technician uses terminal to summon reinforcements. 26169_ ALERT: Hostiles spotted, dispatching reinforcements to Terminal R007. 26169_ O-16 Technician locks terminal. 26169_ Acquired Hvy. Phase Cannon. 26170_ Penetrated by Slug. 26175_ S-43 Plague destroyed. 26177_ Terminal disabled. 26179_ Hvy. Phase Cannon destroyed. 26181_ Acquired Hvy. Phase Cannon. 26183_ S-43 Plague destroyed. 26183_ Hvy. Phase Cannon destroyed. Map ----- +----------------------------------------------------+ | ??????????????????"" ???????## ##????????????## | | ??????????????# """ "?????## ##????????????## | | ??????????????# ??### ######????????## | | ??????????????# # #????????## | | ??????????????# + #????????## | | ??????????????# # #????????## | | ??????????????# ??# #????????## | | ??????????????# ""T"" ????# ### #????????## | | ???????????????????""??????# ### #????#???## | | ??????????????????########## #?? #????????## | | ??????????????????# + #??? ??????? | | ??????????????????# # #??? ???????? | | ??????????????????# # #???? ??????? | | ?????????????#????# # #?????? ??????? | | ?????????????# ??# # #????????????????# | | ?????????????# ?########## #????????????????# | | ?????????????# ########## #????????????????? | | ?????????????# ### ?????????????? | | ?????????????# ### ?????????????? | | ?????????????# ### ??????????? ?? | | ?????????????# s ### ????????????? | | ?????????????###########s;######### ?? ????????? | | ?????????????????#### s s #???## # # | | ?????????????????#""" p%s ##??## ########### | | ?????????????????#""" ! Y #??## | | ?????????????????#""" ]@ ##??## | | ?????????????????#"S o #??### | | ?????????????????#"" #???## | | ?????????????????#"" T" #???######### #### | | ?????????????????#### #???######### #### | | ????????????????????# #??????????## #### | | ????????????????????##########??????????## ==%# | | ????????????????????????????????????#???## !*=# | | ????????????????????????????????????????## ! # | | ????????????????????????????????????????## # | | ????????????????????????????????????????########## | | ????????????????????????????????????????########## | | ?????????????????????????????????????????????????? | | ???????????????????????????????????#?????????????? | | ?????????????????????????????????????????????????? | | ?????????????????????????????????????????????????? | | ?????????????????????????????????????????????????? | | ?????????????????????????????????????????????????? | | ?????????????????????????????????????????????????? | | ?????????????????????????????????????????????????? | | ?????????????????????????????????????????????????? | | ?????????????????????????????????????????????????? | | ?????????????????????????????????????????????????? | | ?????????????????????????????????????????????????? | | ?????????????????????????????????????????????????? | +----------------------------------------------------+ Best States ------------- Heat Dissipation 105 Energy Generation 55 Energy Capacity 1300 Matter Stores 300 Matter Capacity 300 Sight Range 23 Robot Scan Range 20 Terrain Scan Range 14 Terrain Scan Density 10 Jamming Range 14 Cloak Strength 4 Armor Coverage 750 Resistance: KI 30 Propulsion Shielding 66 Evasion (%) 57 Targeting Accuracy 8 Armor Integrity Analysis 50 Recoil Reduction 5 Particle Charging 20 Offensive Hacking 21 Defensive Hacking 12 Item Schematics ----------------- Arm. Huge Wheel | -8/Materials | Scanalyzed Combat Drone Bay | -7/Data Miner | Free Lgt. Regenerative Plating | -7/Data Miner | Free Cld. Cesium-ion Thruster | -7/Data Miner | Free Exp. Weapon Shielding | -7/Data Miner | Free Com. Ion Cannon | -7/Data Miner | Free Linear Gravjet | -7/Data Miner | Free Recoil Nullifier | -7/Data Miner | Free Hvy. Phase Cannon | -7/Data Miner | Free Hyp. Gauss Rifle | -7/Data Miner | Free Mic. Fission Core | -7/Data Miner | Free Mass Driver | -7/Data Miner | Free Adv. Actuator Array | -7/Data Miner | Free Hpw. Shock Rifle | -6/Zion | Archive Point Defense System | -6/Zion | Archive Adv. Sensor Array | -6/Zion | Archive Antigrav System | -6/Zion | Archive Adv. Plasma Cannon | -6/Zion | Archive Imp. Reaction Control System | -6/Zion | Archive HERF Cannon | -6/Zion | Archive EM Disruption Field | -6/Zion | Archive Neutrino Core | -6/Zion | Archive Mak. Transmission Jammer | -6/Zion | Archive Mak. Trap Scanner | -6/Zion | Archive Arc Thrower | -6/Zion | Archive Imp. Force Field | -6/Zion | Archive Imp. Weapon Cycler | -6/Zion | Archive Fusion Compressor | -6/Zion | Archive Robot Schematics ------------------ Y-54 Guardian | -7/Data Miner | Free B-48 Gladiator | -7/Data Miner | Free W-25 Informer | -7/Data Miner | Free G-50 Soldier | -7/Data Miner | Free M-22 Extractor | -7/Data Miner | Free A-15 Conveyor | -6/Zion | Archive Y-72 Warden | -6/Zion | Archive L-41 Fighter | -6/Zion | Archive Fabricated ------------ Nothing Alien Tech Used ----------------- None Achievements -------------- None Challenges ------------ None Game ------ Seed ModifiedSpikedSaw Manual? 0 Play Time 05:32:07 Cumulative 100.9 hours Start 2024.04.04 @ 01:55:46 End 2024.04.04 @ 08:05:05 Sessions 3 Manual Loads 0 Difficulty Rogue Special Mode None Game No. 55 Rogue 55 Adventurer 0 Explorer 0 Win Type - Total 4 Types 3/0/0/1/0/0/0/0/0 Lore% 56 Gallery% 72 Achievement% 48 Wizard Run 0 Options --------- Layout 2 ASCII 0 Keyboard 1 Movement Numpad Keybinds 0 Fullscreen 2 Font 32/Tamsyn Map View 50x44 Zoom Use 0% Tactical HUD 1 Map Filters NONE Filters NONE Steam 1 RUN: d0763e99-a991-44e6-9193-a44a7e1123dd